fUSD/lending_fUSD_20240409
["ID","MTS","AMOUNT","RATE_DAILY","PERIOD"]
[321927651,1712639444570,-500.0,0.00020821,2]
[321927652,1712639444580,-2211.66,0.00020821,2]
[321927653,1712639444589,-8926.03,0.00020821,2]
[321927654,1712639444599,-500.0,0.00020821,2]
[321927655,1712639444608,-500.0,0.00020821,2]
[321927656,1712639444617,-2743.7,0.00020821,2]
[321927657,1712639444626,-9569.39,0.00020821,2]
[321927658,1712639444636,-500.0,0.00020821,2]
[321927659,1712639444645,-2584.22,0.00020821,2]
[321927660,1712639444655,-1000.75,0.00020821,2]
[321927661,1712639444664,-500.0,0.00020821,2]
[321927662,1712639444673,-500.0,0.00020821,2]
[321927663,1712639444684,-576.41,0.00020821,2]
[321927664,1712639444694,-500.0,0.00020821,2]
[321927665,1712639444702,-500.0,0.00020821,2]
[321927666,1712639444711,-1705.09,0.00020821,2]
[321927667,1712639444721,-452.38012832,0.00020821,2]
[321927668,1712639444731,-4803.07,0.00020821,2]
[321927669,1712639444741,-500.0,0.00020821,2]
[321927670,1712639444750,-500.0,0.00020821,2]
[321927671,1712639444759,-9018.24,0.00020821,2]
[321927672,1712639444768,-4225.04,0.00020821,2]
[321927673,1712639444778,-11865.11,0.00020821,2]
[321927674,1712639444787,-500.0,0.00020821,2]
[321927675,1712639444796,-500.0,0.00020821,2]
[321927676,1712639444806,-1399.17,0.00020821,2]
[321927677,1712639444816,-1913.52,0.00020821,2]
[321927678,1712639444829,-500.0,0.00020821,2]
[321927679,1712639444838,-4991.31,0.00020821,2]
[321927680,1712639444847,-319.26173534,0.00020821,2]
[321927681,1712639444857,-6622.89,0.00020821,2]
[321927682,1712639444866,-7278.62,0.00020821,2]
[321927683,1712639444875,-2283.12,0.00020821,2]
[321927684,1712639444884,-845.91,0.00020821,2]
[321927685,1712639444895,-590.76,0.00020821,2]
[321927686,1712639444904,-423.3550097,0.00020821,2]
[321927687,1712639444913,-500.0,0.00020821,2]
[321927688,1712639444923,-1000.0,0.00020832,2]
[321927689,1712639444933,-158.87549251,0.00020872,2]
[321927690,1712639444944,-48290.3497,0.00020873,2]
[321927691,1712639444953,-4229.8365,0.00020873,2]
[321927692,1712639444962,-2169.7143,0.00020873,2]
[321927693,1712639444972,-1453.9958,0.00020873,2]
[321927694,1712639444981,-3967.7948,0.00020874,2]
[321927695,1712639444991,-609.35227,0.00020876,2]
[321927696,1712639445001,-1459.63,0.00020899,2]
[321927697,1712639445010,-1000.75,0.00020899,2]
[321927698,1712639445020,-11760.455236,0.000209,2]
[321927699,1712639445029,-56664.1524699,0.000209,2]
[321927700,1712639445039,-190.09889384,0.000209,3]
[321927701,1712639445048,-1035.0,0.000209,2]
[321927702,1712639445058,-5587.11458188,0.000209,2]
[321927703,1712639445067,-439.52366234,0.000209,2]
[321927704,1712639445077,-229.37040124,0.000209,2]
[321927705,1712639445086,-166.7090547,0.000209,2]
[321927706,1712639445095,-174.93163028,0.000209,2]
[321927707,1712639445105,-288.0,0.00020941,2]
[321927708,1712639445114,-2620.38844161,0.00020955,2]
[321927709,1712639445191,-246.85,0.00020965,2]
[321927710,1712639445201,-520.17,0.00020965,2]
[321927711,1712639445214,-349.13,0.00020965,2]
[321927712,1712639445223,-177.61,0.00020965,2]
[321927713,1712639445232,-150.0,0.00020965,2]
[321927714,1712639445241,-417.68,0.00020965,2]
[321927715,1712639445250,-162.18,0.00020965,2]
[321927716,1712639445259,-777.69276381,0.00020971,2]
[321927717,1712639445268,-225.17264053,0.00020971,2]
[321927718,1712639445277,-855.04167338,0.00020971,2]
[321927719,1712639445286,-5041.44013274,0.00020972,2]
[321927720,1712639445295,-1459.63,0.00020972,2]
[321927721,1712639445305,-1459.63,0.00020972,2]
[321927722,1712639445314,-2913.48,0.00020972,2]
[321927723,1712639445323,-2913.48,0.00020972,2]
[321927724,1712639445331,-1000.75,0.00020972,2]
[321927725,1712639445341,-1000.75,0.00020972,2]
[321927726,1712639445350,-14081.0,0.00020973,2]
[321927727,1712639445359,-500.0,0.00020973,2]
[321927728,1712639445368,-2104.91,0.00020973,2]
[321927729,1712639445378,-1387.28,0.00020973,2]
[321927730,1712639445386,-1975.52,0.00020973,2]
[321927731,1712639445395,-722.49,0.00020973,2]
[321927732,1712639445404,-579.57,0.00020973,2]
[321927733,1712639445413,-500.0,0.00020973,2]
[321927734,1712639445422,-500.0,0.00020973,2]
[321927735,1712639445431,-500.0,0.00020973,2]
[321927736,1712639445440,-1348.45,0.00020973,2]
[321927737,1712639445450,-1712.87,0.00020973,2]
[321927738,1712639445459,-500.0,0.00020973,2]
[321927739,1712639445468,-1081.06,0.00020973,2]
[321927740,1712639445478,-500.0,0.00020973,2]
[321927741,1712639445487,-1459.63,0.00020973,2]
[321927742,1712639445497,-1459.63,0.00020973,2]
[321927743,1712639445506,-535.97350084,0.00020973,2]
[321927744,1712639445515,-500.0,0.00020973,2]
[321927745,1712639445524,-716.2,0.00020973,2]
[321927746,1712639445533,-500.0,0.00020973,2]
[321927747,1712639445542,-500.0,0.00020973,2]
[321927748,1712639445551,-500.0,0.00020973,2]
[321927749,1712639445561,-500.0,0.00020973,2]
[321927750,1712639445620,-500.0,0.00020973,2]
[321927751,1712639445629,-1752.61,0.00020973,2]
[321927752,1712639445639,-704.75,0.00020973,2]
[321927753,1712639445649,-500.0,0.00020973,2]
[321927754,1712639445659,-1476.07,0.00020973,2]
[321927755,1712639445668,-2870.92,0.00020973,2]
[321927756,1712639445678,-500.0,0.00020973,2]
[321927757,1712639445688,-500.0,0.00020973,2]
[321927759,1712639445698,-500.0,0.00020973,2]
[321927760,1712639445707,-1439.09,0.00020973,2]
[321927762,1712639445716,-699.64,0.00020973,2]
[321927765,1712639445726,-500.0,0.00020973,2]
[321927767,1712639445735,-500.0,0.00020973,2]
[321927768,1712639445745,-1541.77,0.00020973,2]
[321927771,1712639445754,-500.0,0.00020973,2]
[321927773,1712639445764,-1381.28,0.00020973,2]
[321927774,1712639445774,-1364.04,0.00020973,2]
[321927776,1712639445783,-1514.74,0.00020973,2]
[321927778,1712639445792,-1207.65,0.00020973,2]
[321927780,1712639445802,-1312.69,0.00020973,2]
[321927782,1712639445814,-947.91,0.00020973,2]
[321927784,1712639445823,-500.0,0.00020973,2]
[321927786,1712639445832,-1931.21,0.00020973,2]
[321927788,1712639445841,-1099.95,0.00020973,2]
[321927790,1712639445851,-500.0,0.00020973,2]
[321927792,1712639445861,-1547.98,0.00020973,2]
[321927795,1712639445871,-1876.77,0.00020973,2]
[321927797,1712639445880,-2669.53,0.00020973,2]
[321927799,1712639445889,-1039.61,0.00020973,2]
[321927800,1712639445900,-1894.05,0.00020973,2]
[321927802,1712639445909,-3495.71,0.00020973,2]
[321927804,1712639445918,-500.0,0.00020973,2]
[321927806,1712639445927,-1818.58,0.00020973,2]
[321927809,1712639445938,-3043.76,0.00020973,2]
[321927811,1712639445949,-1982.98,0.00020973,2]
[321927812,1712639445958,-579.16,0.00020973,2]
[321927815,1712639445968,-926.23,0.00020973,2]
[321927817,1712639445977,-472.21567897,0.00020973,2]
[321927896,1712639446623,-500.0,0.00020821,2]
[321927898,1712639446632,-500.0,0.00020821,2]
[321927900,1712639446642,-1966.79432103,0.00020973,2]
[321927902,1712639446651,-6003.0,0.00020973,2]
[321927904,1712639446660,-537.55,0.00020973,2]
[321927906,1712639446669,-504.88047725,0.00020973,2]
[321927908,1712639446678,-500.0,0.00020973,2]
[321927909,1712639446688,-737.01,0.00020973,2]
[321927911,1712639446697,-4103.36,0.00020973,2]
[321927913,1712639446706,-5455.76,0.00020973,2]
[321927915,1712639446715,-500.0,0.00020973,2]
[321927917,1712639446724,-500.0,0.00020973,2]
[321927920,1712639446733,-3424.18,0.00020973,2]
[321927921,1712639446743,-500.0,0.00020973,2]
[321927923,1712639446752,-500.0,0.00020973,2]
[321927925,1712639446762,-1007.67,0.00020973,2]
[321927927,1712639446772,-950.56,0.00020973,2]
[321927930,1712639446782,-2305.2,0.00020973,2]
[321927932,1712639446792,-802.8,0.00020973,2]
[321927934,1712639446803,-1354.26,0.00020973,2]
[321927935,1712639446814,-882.23,0.00020973,2]
[321927937,1712639446827,-1885.22,0.00020973,2]
[321927939,1712639446838,-1168.55,0.00020973,2]
[321927941,1712639446847,-1121.97,0.00020973,2]
[321927944,1712639446858,-4149.05,0.00020973,2]
[321927945,1712639446868,-2913.48,0.00020973,2]
[321927946,1712639446878,-2019.18,0.00020973,2]
[321927947,1712639446888,-3713.61,0.00020973,2]
[321927948,1712639446899,-500.0,0.00020973,2]
[321927949,1712639446910,-1513.13,0.00020973,2]
[321927950,1712639446920,-4612.54,0.00020973,2]
[321927951,1712639446932,-1545.67,0.00020973,2]
[321927953,1712639446942,-1616.78,0.00020973,2]
[321927955,1712639446951,-409.15574527,0.00020973,2]
[321927960,1712639446988,-649.95595514,0.00020973,2]
[321927962,1712639446999,-545.31829959,0.00020973,2]
[321927964,1712639447009,-6716.85,0.00020973,2]
[321927966,1712639447020,-2850.67,0.00020973,2]
[321927968,1712639447030,-10206.0,0.00020973,2]
[321927970,1712639447041,-500.0,0.00020973,2]
[321927972,1712639447052,-1080.56,0.00020973,2]
[321927974,1712639447062,-5470.05361117,0.00020973,2]
[321928020,1712639447526,-465.13515,0.00020821,2]
[321928025,1712639447564,-500.0,0.00020821,2]
[321928027,1712639447575,-299.52107767,0.00020821,2]
[321928030,1712639447586,-475.90967655,0.00020821,2]
[321928032,1712639447598,-2400.56409578,0.00020821,2]
[321928034,1712639447607,-18936.16538917,0.00020973,2]
[321928036,1712639447619,-677.05093942,0.00020973,2]
[321928038,1712639447631,-393.43850002,0.00020973,2]
[321928041,1712639447642,-450.64895006,0.00020973,2]
[321928173,1712639449007,-1016.05865497,0.00019754,2]
[321928179,1712639449047,-897.98134503,0.00019754,2]
[321928181,1712639449056,-526.15118823,0.00020821,2]
[321928183,1712639449066,-2660.72391788,0.00020973,2]
[321928187,1712639449095,-10514.6398,0.00020973,2]
[321928191,1712639449129,-10653.53889228,0.00020973,2]
[321928193,1712639449139,-1784.32,0.00020973,2]
[321928195,1712639449148,-1926.21,0.00020973,2]
[321928197,1712639449157,-1485.2,0.00020973,2]
[321928199,1712639449167,-12343.02,0.00020973,2]
[321928201,1712639449176,-500.0,0.00020973,2]
[321928203,1712639449185,-500.0,0.00020973,2]
[321928205,1712639449194,-1000.75,0.00020973,2]
[321928207,1712639449203,-1000.75,0.00020973,2]
[321928209,1712639449212,-4031.15,0.00020973,2]
[321928211,1712639449221,-1030.3,0.00020973,2]
[321928213,1712639449231,-30690.71,0.00020973,2]
[321928215,1712639449240,-970.23,0.00020973,2]
[321928217,1712639449250,-3181.95,0.00020973,2]
[321928220,1712639449259,-7466.99,0.00020974,2]
[321928221,1712639449268,-500.0,0.00020974,2]
[321928223,1712639449278,-500.0,0.00020974,2]
[321928225,1712639449287,-500.0,0.00020974,2]
[321928227,1712639449296,-208.59437229,0.00020974,2]
[321928229,1712639449306,-543.22833135,0.00020974,2]
[321928231,1712639449315,-1339.2,0.00020974,2]
[321928233,1712639449325,-500.0,0.00020974,2]
[321928235,1712639449334,-500.0,0.00020974,2]
[321928237,1712639449344,-500.0,0.00020974,2]
[321928239,1712639449354,-500.0,0.00020974,2]
[321928241,1712639449367,-500.0,0.00020974,2]
[321928243,1712639449377,-500.0,0.00020974,2]
[321928245,1712639449386,-500.0,0.00020974,2]
[321928247,1712639449394,-500.0,0.00020974,2]
[321928249,1712639449403,-500.0,0.00020974,2]
[321928251,1712639449412,-510.30898835,0.00020974,2]
[321928253,1712639449421,-500.0,0.00020974,2]
[321928255,1712639449430,-500.0,0.00020974,2]
[321928257,1712639449440,-978.59,0.00020974,2]
[321928259,1712639449449,-500.0,0.00020974,2]
[321928261,1712639449458,-543.35345665,0.00020974,2]
[321928263,1712639449467,-500.0,0.00020974,2]
[321928265,1712639449477,-503.32726695,0.00020974,2]
[321928267,1712639449486,-500.0,0.00020974,2]
[321928270,1712639449496,-509.63775545,0.00020974,2]
[321928271,1712639449505,-500.0,0.00020974,2]
[321928273,1712639449514,-436.15091071,0.00020974,2]
[321928340,1712639450184,-359.795,0.00020821,2]
[321928344,1712639450222,-140.205,0.00020821,2]
[321928346,1712639450232,-63.84908929,0.00020974,2]
[321928348,1712639450242,-500.0,0.00020974,2]
[321928350,1712639450251,-193.59295347,0.00020974,2]
[321928352,1712639450261,-500.0,0.00020974,2]
[321928354,1712639450272,-500.0,0.00020974,2]
[321928357,1712639450282,-500.0,0.00020974,2]
[321928358,1712639450292,-500.0,0.00020974,2]
[321928361,1712639450303,-512.02060257,0.00020974,2]
[321928363,1712639450314,-500.0,0.00020974,2]
[321928365,1712639450325,-652.33,0.00020974,2]
[321928367,1712639450336,-500.0,0.00020974,2]
[321928369,1712639450346,-425.74425873,0.00020974,2]
[321928370,1712639450356,-1094.67,0.00020974,2]
[321928372,1712639450368,-506.25402525,0.00020974,2]
[321928375,1712639450378,-500.0,0.00020974,2]
[321928376,1712639450388,-500.0,0.00020974,2]
[321928379,1712639450398,-503.54828316,0.00020974,2]
[321928381,1712639450408,-500.0,0.00020974,2]
[321928383,1712639450418,-517.96814965,0.00020974,2]
[321928385,1712639450431,-500.0,0.00020974,2]
[321928386,1712639450445,-500.0,0.00020974,2]
[321928388,1712639450455,-507.02106742,0.00020974,2]
[321928391,1712639450466,-500.0,0.00020974,2]
[321928393,1712639450476,-500.0,0.00020974,2]
[321928395,1712639450487,-500.0,0.00020974,2]
[321928397,1712639450497,-504.69632713,0.00020974,2]
[321928399,1712639450507,-500.0,0.00020974,2]
[321928401,1712639450516,-500.0,0.00020974,2]
[321928403,1712639450526,-993.43,0.00020974,2]
[321928405,1712639450535,-500.0,0.00020974,2]
[321928407,1712639450547,-1021.9,0.00020974,2]
[321928409,1712639450557,-380.73868676,0.00020974,2]
[321928411,1712639450567,-520.97227162,0.00020974,2]
[321928413,1712639450577,-523.14113972,0.00020974,2]
[321928415,1712639450587,-500.0,0.00020974,2]
[321928417,1712639450598,-500.0,0.00020974,2]
[321928419,1712639450608,-500.0,0.00020974,2]
[321928421,1712639450618,-500.0,0.00020974,2]
[321928423,1712639450629,-500.0,0.00020974,2]
[321928425,1712639450639,-500.0,0.00020974,2]
[321928427,1712639450648,-500.0,0.00020974,2]
[321928429,1712639450658,-500.0,0.00020974,2]
[321928431,1712639450667,-597.64690051,0.00020974,2]
[321928433,1712639450677,-513.98406261,0.00020974,2]
[321928435,1712639450689,-627.17,0.00020974,2]
[321928437,1712639450698,-500.0,0.00020974,2]
[321928438,1712639450708,-513.50350654,0.00020974,2]
[321928440,1712639450717,-632.27,0.00020974,2]
[321928442,1712639450726,-603.6,0.00020974,2]
[321928444,1712639450736,-558.24,0.00020974,2]
[321928447,1712639450746,-531.82,0.00020974,2]
[321928449,1712639450756,-500.0,0.00020974,2]
[321928451,1712639450767,-500.0,0.00020974,2]
[321928453,1712639450776,-500.0,0.00020974,2]
[321928455,1712639450786,-500.0,0.00020974,2]
[321928457,1712639450796,-774.56,0.00020974,2]
[321928459,1712639450805,-500.0,0.00020974,2]
[321928461,1712639450815,-500.0,0.00020974,2]
[321928462,1712639450827,-500.0,0.00020974,2]
[321928463,1712639450837,-500.0,0.00020974,2]
[321928464,1712639450846,-500.0,0.00020974,2]
[321928465,1712639450856,-500.0,0.00020974,2]
[321928466,1712639450866,-500.0,0.00020974,2]
[321928467,1712639450877,-525.44,0.00020974,2]
[321928469,1712639450887,-600.0,0.00020974,2]
[321928471,1712639450898,-1181.96,0.00020974,2]
[321928473,1712639450910,-500.0,0.00020974,2]
[321928475,1712639450922,-500.0,0.00020974,2]
[321928477,1712639450933,-500.0,0.00020974,2]
[321928479,1712639450951,-500.0,0.00020974,2]
[321928481,1712639450962,-644.52,0.00020974,2]
[321928483,1712639450972,-500.0,0.00020974,2]
[321928485,1712639450983,-776.89,0.00020974,2]
[321928487,1712639450994,-679.31,0.00020974,2]
[321928489,1712639451004,-776.69,0.00020974,2]
[321928491,1712639451013,-500.0,0.00020974,2]
[321928493,1712639451023,-500.0,0.00020974,2]
[321928495,1712639451033,-500.0,0.00020974,2]
[321928497,1712639451042,-500.0,0.00020974,2]
[321928540,1712639451443,-500.0,0.00020974,2]
[321928542,1712639451455,-500.0,0.00020974,2]
[321928544,1712639451465,-500.0,0.00020974,2]
[321928546,1712639451475,-500.0,0.00020974,2]
[321928548,1712639451486,-589.39,0.00020974,2]
[321928550,1712639451496,-584.32,0.00020974,2]
[321928552,1712639451507,-500.0,0.00020974,2]
[321928554,1712639451516,-819.58,0.00020974,2]
[321928556,1712639451526,-500.0,0.00020974,2]
[321928558,1712639451536,-727.98,0.00020974,2]
[321928560,1712639451545,-500.0,0.00020974,2]
[321928562,1712639451555,-1268.43,0.00020974,2]
[321928564,1712639451564,-1319.56,0.00020974,2]
[321928566,1712639451574,-500.0,0.00020974,2]
[321928568,1712639451584,-886.47,0.00020974,2]
[321928570,1712639451594,-500.0,0.00020974,2]
[321928572,1712639451603,-500.0,0.00020974,2]
[321928574,1712639451613,-500.0,0.00020974,2]
[321928576,1712639451623,-500.0,0.00020974,2]
[321928578,1712639451633,-500.0,0.00020974,2]
[321928580,1712639451642,-500.0,0.00020974,2]
[321928582,1712639451651,-561.3836756,0.00020974,2]
[321928597,1712639451782,-414.3463244,0.00020974,2]
[321928599,1712639451791,-779.01,0.00020974,2]
[321928601,1712639451800,-500.0,0.00020974,2]
[321928603,1712639451810,-500.0,0.00020974,2]
[321928605,1712639451823,-500.0,0.00020974,2]
[321928607,1712639451832,-500.0,0.00020974,2]
[321928609,1712639451841,-548.56680995,0.00020974,2]
[321928611,1712639451851,-500.0,0.00020974,2]
[321928613,1712639451861,-500.0,0.00020974,2]
[321928616,1712639451871,-500.0,0.00020974,2]
[321928618,1712639451881,-500.0,0.00020974,2]
[321928620,1712639451890,-1459.63,0.00020974,2]
[321928622,1712639451901,-1079.74,0.00020974,2]
[321928624,1712639451910,-500.0,0.00020974,2]
[321928625,1712639451919,-500.0,0.00020974,2]
[321928627,1712639451928,-500.0,0.00020974,2]
[321928630,1712639451939,-500.0,0.00020974,2]
[321928631,1712639451949,-500.0,0.00020974,2]
[321928632,1712639451958,-500.0,0.00020974,2]
[321928633,1712639451966,-500.0,0.00020974,2]
[321928634,1712639451976,-500.0,0.00020974,2]
[321928635,1712639451985,-500.0,0.00020974,2]
[321928636,1712639451993,-500.0,0.00020974,2]
[321928638,1712639452002,-504.09437094,0.00020974,2]
[321928640,1712639452011,-543.97,0.00020974,2]
[321928642,1712639452021,-500.0,0.00020974,2]
[321928644,1712639452030,-500.0,0.00020974,2]
[321928646,1712639452038,-570.04,0.00020974,2]
[321928648,1712639452048,-500.0,0.00020974,2]
[321928650,1712639452057,-500.0,0.00020974,2]
[321928652,1712639452066,-500.0,0.00020974,2]
[321928654,1712639452075,-500.0,0.00020974,2]
[321928656,1712639452084,-769.36,0.00020974,2]
[321928658,1712639452093,-500.0,0.00020974,2]
[321928660,1712639452103,-500.0,0.00020974,2]
[321928662,1712639452112,-500.0,0.00020974,2]
[321928664,1712639452122,-500.0,0.00020974,2]
[321928666,1712639452132,-803.13,0.00020974,2]
[321928668,1712639452142,-500.0,0.00020974,2]
[321928670,1712639452151,-500.0,0.00020974,2]
[321928672,1712639452161,-500.0,0.00020974,2]
[321928674,1712639452170,-516.47,0.00020974,2]
[321928676,1712639452179,-500.0,0.00020974,2]
[321928678,1712639452190,-500.0,0.00020974,2]
[321928680,1712639452199,-500.0,0.00020974,2]
[321928682,1712639452208,-576.5,0.00020974,2]
[321928684,1712639452217,-1213.64,0.00020974,2]
[321928686,1712639452227,-516.21799279,0.00020974,2]
[321928688,1712639452235,-7275.8240955,0.00020974,2]
[321928690,1712639452245,-500.0,0.00020974,2]
[321928692,1712639452254,-594.86,0.00020974,2]
[321928694,1712639452263,-500.0,0.00020974,2]
[321928696,1712639452272,-1017.65,0.00020974,2]
[321928698,1712639452281,-500.0,0.00020974,2]
[321928700,1712639452290,-500.0,0.00020974,2]
[321928702,1712639452299,-500.0,0.00020974,2]
[321928704,1712639452310,-500.0,0.00020974,2]
[321928706,1712639452319,-500.0,0.00020974,2]
[321928708,1712639452328,-500.0,0.00020974,2]
[321928710,1712639452337,-546.25745641,0.00020974,2]
[321928712,1712639452346,-1100.33,0.00020974,2]
[321928714,1712639452356,-954.78,0.00020974,2]
[321928716,1712639452365,-500.0,0.00020974,2]
[321928718,1712639452375,-538.42,0.00020974,2]
[321928720,1712639452384,-500.0,0.00020974,2]
[321928723,1712639452393,-500.0,0.00020974,2]
[321928725,1712639452402,-525.64101249,0.00020974,2]
[321928727,1712639452411,-504.75246299,0.00020974,2]
[321928728,1712639452420,-505.08331748,0.00020974,2]
[321928731,1712639452430,-899.98,0.00020974,2]
[321928733,1712639452440,-1020.93,0.00020974,2]
[321928735,1712639452452,-500.0,0.00020974,2]
[321928737,1712639452460,-500.0,0.00020974,2]
[321928739,1712639452470,-994.66,0.00020974,2]
[321928741,1712639452479,-500.0,0.00020974,2]
[321928743,1712639452488,-500.0,0.00020974,2]
[321928745,1712639452497,-519.49,0.00020974,2]
[321928747,1712639452507,-500.0,0.00020974,2]
[321928749,1712639452516,-500.0,0.00020974,2]
[321928751,1712639452525,-770.04,0.00020974,2]
[321928753,1712639452534,-500.0,0.00020974,2]
[321928755,1712639452543,-503.19949673,0.00020974,2]
[321928757,1712639452552,-500.0,0.00020974,2]
[321928759,1712639452561,-578.83,0.00020974,2]
[321928761,1712639452570,-500.0,0.00020974,2]
[321928763,1712639452580,-500.0,0.00020974,2]
[321928765,1712639452590,-500.0,0.00020974,2]
[321928767,1712639452599,-500.0,0.00020974,2]
[321928769,1712639452608,-490.06895379,0.00020974,2]
[321928771,1712639452617,-500.0,0.00020974,2]
[321928773,1712639452626,-734.41,0.00020974,2]
[321928775,1712639452636,-500.0,0.00020974,2]
[321928777,1712639452646,-500.0,0.00020974,2]
[321928779,1712639452655,-500.0,0.00020974,2]
[321928781,1712639452665,-500.0,0.00020974,2]
[321928783,1712639452674,-500.0,0.00020974,2]
[321928785,1712639452683,-500.0,0.00020974,2]
[321928787,1712639452693,-500.0,0.00020974,2]
[321928789,1712639452702,-500.0,0.00020974,2]
[321928791,1712639452711,-500.0,0.00020974,2]
[321928793,1712639452720,-500.0,0.00020974,2]
[321928795,1712639452730,-500.0,0.00020974,2]
[321928797,1712639452739,-500.0,0.00020974,2]
[321928799,1712639452748,-500.0,0.00020974,2]
[321928801,1712639452757,-500.0,0.00020974,2]
[321928803,1712639452765,-561.16,0.00020974,2]
[321928805,1712639452775,-500.0,0.00020974,2]
[321928807,1712639452784,-696.49,0.00020974,2]
[321928809,1712639452793,-500.0,0.00020974,2]
[321928811,1712639452802,-500.0,0.00020974,2]
[321928813,1712639452813,-500.0,0.00020974,2]
[321928815,1712639452822,-500.0,0.00020974,2]
[321928817,1712639452831,-650.26,0.00020974,2]
[321928819,1712639452840,-500.0,0.00020974,2]
[321928821,1712639452850,-500.0,0.00020974,2]
[321928823,1712639452859,-500.0,0.00020974,2]
[321928825,1712639452868,-500.0,0.00020974,2]
[321928827,1712639452877,-584.3,0.00020974,2]
[321928829,1712639452887,-500.0,0.00020974,2]
[321928831,1712639452897,-517.12818395,0.00020974,2]
[321928833,1712639452906,-500.0,0.00020974,2]
[321928834,1712639452915,-500.0,0.00020974,2]
[321928835,1712639452924,-971.72,0.00020974,2]
[321928836,1712639452933,-517.75102001,0.00020974,2]
[321928837,1712639452942,-500.0,0.00020974,2]
[321928838,1712639452952,-500.0,0.00020974,2]
[321928840,1712639452961,-500.0,0.00020974,2]
[321928842,1712639452970,-500.0,0.00020974,2]
[321928844,1712639452980,-500.0,0.00020974,2]
[321928846,1712639452989,-500.0,0.00020974,2]
[321928848,1712639452998,-500.0,0.00020974,2]
[321928851,1712639453008,-500.0,0.00020974,2]
[321928853,1712639453018,-500.0,0.00020974,2]
[321928855,1712639453027,-1429.73,0.00020974,2]
[321928857,1712639453036,-500.0,0.00020974,2]
[321928859,1712639453045,-500.0,0.00020974,2]
[321928860,1712639453055,-500.0,0.00020974,2]
[321928863,1712639453070,-500.0,0.00020974,2]
[321928865,1712639453079,-500.0,0.00020974,2]
[321928867,1712639453088,-1026.7,0.00020974,2]
[321928869,1712639453097,-1095.24,0.00020974,2]
[321928871,1712639453106,-500.0,0.00020974,2]
[321928873,1712639453116,-500.0,0.00020974,2]
[321928875,1712639453125,-500.0,0.00020974,2]
[321928877,1712639453134,-519.60188374,0.00020974,2]
[321928879,1712639453143,-1507.73,0.00020974,2]
[321928881,1712639453153,-500.0,0.00020974,2]
[321928883,1712639453162,-500.0,0.00020974,2]
[321928885,1712639453171,-500.0,0.00020974,2]
[321928887,1712639453179,-500.0,0.00020974,2]
[321928889,1712639453189,-500.0,0.00020974,2]
[321928891,1712639453198,-500.0,0.00020974,2]
[321928893,1712639453207,-500.0,0.00020974,2]
[321928895,1712639453216,-500.0,0.00020974,2]
[321928897,1712639453225,-505.21006571,0.00020974,2]
[321928898,1712639453234,-500.0,0.00020974,2]
[321928900,1712639453243,-500.0,0.00020974,2]
[321928902,1712639453252,-500.0,0.00020974,2]
[321928904,1712639453261,-500.0,0.00020974,2]
[321928906,1712639453271,-1305.93,0.00020974,2]
[321928908,1712639453280,-500.0,0.00020974,2]
[321928910,1712639453289,-525.30962355,0.00020974,2]